bitfinex/quotes_ETHUSD_20251221
["timestamp","ask_amount","ask_price","bid_price","bid_amount"]
[1766338355448,1.17541568,2983.7,2982.6,3.79176849]
[1766338355449,2.65,2983.9,2982.9,4.61030401]
[1766338355629,0.439,2983.8,2983.0,2.2483]
[1766338355836,0.002,2983.7,2983.0,1.7336]
[1766338356037,0.002,2983.7,2983.3,1.7336]
[1766338356238,0.002,2983.7,2983.3,2.2485]
[1766338359355,0.002,2983.7,2983.1,1.7336]
[1766338359749,0.002,2983.7,2983.3,1.7336]
[1766338360561,0.002,2983.7,2982.9,2.2494]
[1766338360766,0.002,2983.9,2983.4,0.5141]
[1766338361055,0.001,2984.0,2983.7,2.2457]
[1766338361233,3.3522151,2984.0,2983.1,2.2457]
[1766338361565,2.648,2983.9,2983.3,1.7336]
[1766338361733,2.648,2983.9,2983.3,2.2457]
[1766338365444,2.648,2983.9,2983.4,1.7335]
[1766338365640,2.648,2983.9,2983.4,2.2464]
[1766338366243,0.001,2984.0,2983.4,0.5129]
[1766338366543,0.001,2984.0,2983.5,1.7335]
[1766338366942,0.001,2984.4,2983.9,4.60646441]
[1766338367140,0.002,2984.7,2984.2,1.8119]
[1766338367345,5.27403023,2984.7,2984.2,1.8119]
[1766338367552,6.00043023,2984.7,2984.2,1.8119]
[1766338367868,6.00043023,2984.7,2984.2,0.5124]
[1766338371572,2.65,2984.7,2984.1,0.5132]
[1766338371770,2.65,2984.7,2984.1,1.99587]
[1766338372574,6.00042484,2984.7,2984.1,1.99587]
[1766338373252,0.002,2984.7,2984.2,1.8159]
[1766338373464,0.002,2984.7,2984.3,0.5136]
[1766338373663,0.002,2984.7,2984.3,1.8159]
[1766338375085,0.002,2984.7,2984.3,2.015617]
[1766338379085,0.002,2984.7,2984.3,0.199717]
[1766338379267,0.002,2984.7,2984.1,1.7439]
[1766338379268,2.648,2984.6,2984.1,1.7439]
[1766338379867,0.7264,2984.6,2984.1,1.7439]
[1766338380188,0.002,2984.7,2984.1,1.7439]
[1766338380395,2.65,2984.7,2984.1,1.7439]
[1766338381001,2.65,2984.7,2984.1,2.1753]
[1766338381304,6.00044459,2984.7,2984.1,2.1753]
[1766338381997,2.402,2984.9,2984.6,1.7358]
[1766338382210,0.002,2985.2,2984.6,0.039]
[1766338382565,0.002,2985.9,2984.6,0.039]
[1766338382566,2.648,2985.7,2984.6,0.039]
[1766338382899,2.648,2985.7,2984.8,0.039]
[1766338383667,5.99730377,2985.7,2985.0,0.0397]
[1766338385209,5.99730377,2985.7,2984.8,0.0419]
[1766338385210,6.69860754,2985.7,2984.8,0.0419]
[1766338385517,5.93762269,2985.5,2984.8,0.0419]
[1766338385670,1.8912,2985.4,2984.8,0.0419]
[1766338385866,2.5881,2985.1,2984.0,0.001]
[1766338386070,2.5881,2985.1,2984.3,0.0426]
[1766338386801,2.5881,2985.1,2984.4,0.0426]
[1766338387506,3.78868133,2985.4,2984.4,0.0426]
[1766338387671,2.5881,2985.3,2984.4,0.0426]
[1766338388074,3.78868133,2985.4,2984.4,0.0426]
[1766338388372,2.5881,2985.2,2984.4,0.0426]
[1766338388808,0.71382115,2985.3,2984.4,0.0426]
[1766338389503,4.06366716,2985.3,2984.4,0.0426]
[1766338389705,1.8912,2985.2,2984.4,0.0426]
[1766338390008,2.5881,2985.0,2984.4,0.0426]
[1766338396806,2.5881,2985.1,2984.2,1.00640239]
[1766338396980,0.59380029,2985.0,2984.3,0.0497]
[1766338397181,0.439,2985.1,2984.3,0.0497]
[1766338398478,2.5881,2985.2,2984.3,0.0497]
[1766338398698,4.50460121,2985.3,2984.3,0.0497]
[1766338399217,7.09270121,2985.3,2984.3,0.0497]
[1766338399397,7.09270121,2985.3,2984.4,0.0508]
[1766338399985,6.65370121,2985.3,2984.4,0.0508]
[1766338400731,6.65370121,2985.3,2984.4,0.0518]
[1766338400931,4.06560121,2985.3,2984.4,0.0518]
[1766338401100,1.8912,2985.2,2984.4,0.0518]
[1766338401428,1.8912,2985.2,2984.5,0.052]
[1766338405709,5.93799579,2985.2,2984.5,0.052]
[1766338407044,2.5881,2985.1,2984.4,0.001]
[1766338407242,3.35021455,2984.9,2984.4,0.001]
[1766338407416,3.38340483,2984.8,2984.4,0.001]
[1766338408346,2.5881,2985.2,2984.5,0.0559]
[1766338408516,0.439,2985.1,2984.5,0.0559]
[1766338408932,0.439,2985.2,2984.5,0.0559]
[1766338409939,0.439,2985.2,2984.5,0.0569]
[1766338410335,0.441,2985.2,2984.5,0.0569]
[1766338410735,0.441,2985.2,2984.6,0.0569]
[1766338412859,3.79086058,2985.2,2984.6,0.0569]
[1766338413658,6.38576058,2985.2,2984.6,0.0569]
[1766338413825,2.5949,2985.1,2984.5,0.001]
[1766338414439,3.79086058,2985.2,2984.5,0.001]
[1766338414962,2.5949,2985.0,2984.5,0.001]
[1766338416353,5.94499606,2985.0,2984.5,0.001]
[1766338416555,2.6115,2984.9,2984.5,0.001]
[1766338416868,3.54265812,2984.9,2984.5,0.001]
[1766338417770,2.6115,2985.1,2984.5,0.001]
[1766338417974,2.6115,2985.1,2984.5,0.0628]
[1766338418950,5.961478,2985.1,2984.5,0.0628]
[1766338422376,3.349978,2985.1,2984.5,0.0628]
[1766338422577,1.8751,2984.8,2984.5,0.001]
[1766338423074,0.7364,2984.9,2984.5,0.001]
[1766338423777,2.6115,2984.9,2984.5,0.001]
[1766338425593,4.02030133,2985.0,2984.5,0.001]
[1766338425795,1.8751,2984.9,2984.5,0.001]
[1766338426094,0.7364,2984.8,2984.5,0.001]
[1766338426890,2.6115,2984.8,2984.5,0.001]
[1766338428364,1.8751,2984.8,2984.5,0.001]
[1766338430376,2.6135,2985.2,2984.5,0.068]
[1766338430575,5.22695996,2985.2,2984.5,0.068]
[1766338430795,0.441,2985.2,2984.5,0.068]
[1766338431100,0.002,2985.2,2984.5,0.068]
[1766338431400,0.441,2985.2,2984.6,0.0674]
[1766338433497,0.002,2985.2,2984.6,0.0674]
[1766338433689,0.002,2985.3,2984.7,0.0662]
[1766338435396,0.002,2985.2,2984.7,0.0662]
[1766338439602,0.002,2985.3,2984.6,0.0664]
[1766338439796,0.002,2985.3,2984.8,0.0664]
[1766338440477,2.6115,2985.6,2984.8,0.0648]
[1766338440771,5.96093794,2985.6,2984.8,0.0648]
[1766338441797,3.34943794,2985.6,2984.8,0.0648]
[1766338442807,0.002,2985.3,2984.8,0.0648]
[1766338443780,0.002,2985.9,2984.9,0.0639]
[1766338444098,3.34920544,2985.8,2985.1,0.0642]
[1766338444710,5.96260114,2985.9,2985.1,0.0642]
[1766338444890,6.40160114,2985.9,2985.1,0.0642]
[1766338446294,5.96260114,2985.9,2985.1,0.0642]
[1766338446614,6.40160114,2985.9,2985.1,0.0642]
[1766338448205,2.6135,2985.9,2985.1,0.0642]
[1766338448400,0.002,2985.9,2985.1,0.0642]
[1766338448716,0.002,2985.9,2985.3,0.0654]
[1766338451920,0.439,2986.2,2985.3,0.0625]
[1766338452119,3.78776865,2986.2,2985.3,0.0625]
[1766338452420,0.439,2986.2,2985.4,0.0625]
[1766338452721,0.439,2986.2,2985.6,0.0625]
[1766338454113,3.3039,2986.3,2985.6,0.0625]
[1766338454114,3.7429,2986.3,2985.6,0.0625]
[1766338454527,7.09154261,2986.3,2985.6,0.0625]
[1766338458436,3.7429,2986.3,2985.6,0.0625]
[1766338458805,1.039,2986.3,2985.6,0.0625]
[1766338459006,0.6,2986.3,2985.6,0.0625]
[1766338459713,3.94863066,2986.3,2985.7,0.25829776]
[1766338460112,1.8886,2985.7,2984.4,0.001]
[1766338460319,4.60122258,2986.1,2984.4,0.001]
[1766338460320,4.60122258,2985.2,2984.6,0.0608]
[1766338460524,3.34955303,2985.5,2984.6,0.0608]
[1766338460736,0.43663424,2985.6,2985.1,0.0608]
[1766338461046,0.439,2985.7,2985.1,0.0608]
[1766338461224,0.4547639,2985.8,2985.1,0.0608]
[1766338461414,0.4547639,2985.8,2985.2,0.0607]
[1766338461614,4.53550571,2986.0,2985.2,0.0607]
[1766338461820,0.46630226,2985.9,2985.2,0.0607]
[1766338462949,2.26e-06,2985.9,2985.1,0.46630226]
[1766338463444,3.78800571,2986.0,2985.1,0.90430226]
[1766338465636,3.34900571,2986.0,2985.1,0.90430226]
[1766338465851,1.00625724,2986.1,2985.2,4.60122258]
[1766338466044,0.439,2986.2,2985.3,0.55055248]
[1766338466245,0.439,2986.2,2985.1,0.438]
[1766338466625,1.1865,2986.2,2985.1,0.438]
[1766338466825,3.0751,2986.2,2985.1,0.438]
[1766338467026,9.77257504,2986.2,2985.1,0.438]
[1766338467327,2.6361,2986.1,2985.1,0.438]
[1766338467625,2.6361,2986.1,2985.2,0.50402226]
[1766338469153,3.34896182,2986.0,2985.2,0.50402226]
[1766338473626,2.6361,2985.9,2985.2,0.50402226]
[1766338474027,2.6361,2985.9,2985.1,0.438]
[1766338474245,3.34896182,2986.0,2985.1,0.438]
[1766338474633,5.98498509,2986.1,2985.1,0.438]
[1766338475462,4.22777743,2986.2,2985.1,3.78796267]
[1766338475668,4.22777743,2986.2,2985.1,3.80472657]
[1766338475973,0.002,2986.2,2985.3,4.61798648]
[1766338476460,0.002,2986.2,2985.2,0.84069492]
[1766338476670,0.7134,2985.8,2985.0,0.001]
[1766338476837,0.439,2985.9,2985.0,0.001]
[1766338477430,3.0201,2985.9,2985.0,0.001]
[1766338477773,6.36919362,2985.9,2985.0,0.001]
[1766338479063,6.37119362,2985.9,2985.0,0.001]
[1766338479263,1.53824162,2985.9,2985.0,0.001]
[1766338479466,0.441,2985.9,2985.0,0.001]
[1766338479663,3.35108126,2985.9,2985.0,0.001]
[1766338480977,0.002,2985.9,2985.0,0.001]
[1766338481584,0.439,2986.0,2985.0,0.001]
[1766338481781,3.78798135,2986.0,2985.0,0.001]
[1766338481968,3.78798135,2986.0,2985.1,0.8405654]
[1766338482475,2.5811,2985.5,2985.0,0.001]
[1766338483383,3.58747201,2985.7,2985.0,0.001]
[1766338483677,1.00637201,2985.7,2985.0,0.001]
[1766338483980,1.00637201,2985.7,2985.0,0.439]
[1766338484285,3.34929832,2985.7,2985.0,0.439]
[1766338484510,4.3555456,2985.8,2985.0,0.439]
[1766338485096,8.97906883,2985.8,2985.0,0.439]
[1766338486868,11.56016883,2985.8,2985.0,0.439]
[1766338487482,8.21096823,2985.8,2985.0,0.439]
[1766338488753,5.62986823,2985.8,2985.0,0.439]
[1766338493288,4.62352323,2985.8,2985.0,0.439]
[1766338493588,3.78830876,2985.7,2985.0,0.439]
[1766338495793,3.78833517,2985.7,2985.0,0.439]
[1766338496093,0.439,2985.7,2985.0,0.439]
[1766338496790,3.78834922,2985.7,2985.0,0.439]
[1766338499100,3.78834922,2985.7,2985.0,0.35525352]
[1766338499397,0.50626719,2985.6,2984.8,0.438]
[1766338499567,6.36944922,2985.7,2984.8,0.438]
[1766338501215,3.0201,2985.7,2984.8,0.438]
[1766338501512,0.441,2985.9,2984.8,8.38923242]
[1766338501683,0.441,2985.9,2984.8,8.40599632]
[1766338502000,3.35075435,2986.2,2985.2,0.0167639]
[1766338502001,0.002,2986.2,2985.2,0.0167639]
[1766338502190,3.95069394,2986.3,2985.3,0.438]
[1766338504319,0.002,2985.9,2985.3,0.438]
[1766338505690,6.09069832,2985.7,2985.0,0.438]
[1766338505889,2.7414,2985.5,2984.8,0.439]
[1766338507189,7.49498395,2985.7,2984.8,0.439]
[1766338507495,10.84428227,2985.7,2984.8,0.439]
[1766338507706,2.7414,2985.6,2984.8,0.439]
[1766338508386,6.0909186,2985.6,2984.8,0.439]
[1766338509512,3.3495186,2985.6,2984.8,0.439]
[1766338509694,2.7414,2985.5,2984.8,0.439]
[1766338510714,3.34963488,2985.4,2984.8,0.439]
[1766338511086,6.09096169,2985.5,2984.8,0.439]
[1766338513917,3.34956169,2985.5,2984.8,0.439]
[1766338514220,2.7414,2985.4,2984.8,0.439]
[1766338515444,4.60093319,2985.3,2984.5,0.001]
[1766338515734,0.7703,2985.1,2984.5,0.001]
[1766338516509,2.7414,2985.1,2984.5,0.001]
[1766338516709,2.7414,2985.2,2984.5,0.001]
[1766338517006,1.9711,2985.0,2984.5,0.001]
[1766338517331,1.9711,2985.2,2984.5,0.001]
[1766338517499,2.7414,2984.9,2984.5,0.001]
[1766338518917,3.35008375,2985.0,2984.5,0.001]
[1766338519160,1.9711,2984.9,2984.4,0.001]
[1766338519440,2.7414,2984.8,2984.4,0.001]
[1766338520341,0.70110332,2985.1,2984.4,0.001]
[1766338520561,3.34989949,2985.2,2984.4,0.001]
[1766338520867,2.7414,2985.0,2984.4,0.001]
[1766338521765,0.7703,2985.0,2984.4,0.001]
[1766338521961,2.7414,2984.9,2984.4,0.001]
[1766338524751,0.439,2985.1,2984.4,0.001]
[1766338525926,4.35622778,2985.4,2984.4,0.001]
[1766338525927,1.00656447,2985.4,2984.4,0.001]
[1766338526131,0.439,2985.3,2984.4,0.001]
[1766338527263,2.3799,2985.3,2984.4,0.001]
[1766338527460,3.1355,2985.3,2984.4,0.001]
[1766338528331,6.0463593,2985.2,2984.4,0.001]
[1766338533883,2.6965,2985.2,2984.4,0.001]
[1766338535686,0.002,2985.2,2984.4,0.001]
[1766338537282,2.638,2985.2,2984.4,0.001]
[1766338538190,1.9043,2985.2,2984.4,0.001]
[1766338538370,0.002,2985.2,2984.4,0.001]
[1766338538692,5.98529832,2985.7,2984.4,0.001]
[1766338539196,1.1727,2985.6,2984.5,0.4557639]
[1766338542796,4.52211428,2985.6,2984.6,3.35053273]
[1766338543093,4.52211428,2985.6,2984.7,0.38062966]
[1766338543796,4.52411428,2985.6,2984.7,0.38062966]
[1766338544193,1.1747,2985.6,2984.7,0.38062966]
[1766338544395,0.002,2985.6,2984.7,0.38062966]
[1766338544699,0.002,2985.6,2984.7,0.39739356]
[1766338544877,0.002,2985.6,2984.8,4.06015412]
[1766338548306,0.002,2985.6,2984.8,7.41046234]
[1766338548607,0.002,2985.6,2984.8,4.06015412]
[1766338554004,0.002,2985.6,2984.9,0.438]
[1766338554718,2.636,2985.5,2984.9,0.438]
[1766338555701,2.636,2985.5,2984.8,0.7098459]
[1766338555906,2.636,2985.4,2984.8,0.438]
[1766338561110,2.636,2985.4,2984.8,0.439]
[1766338561483,7.95343356,2985.6,2984.8,0.439]
[1766338561679,0.7337,2985.2,2984.8,0.439]
[1766338561883,2.636,2985.2,2984.8,0.439]
[1766338563988,2.636,2985.5,2984.8,0.439]
[1766338572034,8.74874941,2985.6,2984.8,0.439]
[1766338572247,0.7545,2985.4,2984.8,0.439]
[1766338572395,2.6132,2985.4,2984.8,0.439]
[1766338575039,0.002,2985.6,2984.8,0.439]
[1766338575247,2.6152,2985.6,2984.8,0.81794159]
[1766338575554,0.7545,2985.5,2984.8,0.81794159]
[1766338575835,2.6132,2985.5,2984.8,0.81794159]
[1766338576332,2.6152,2985.5,2984.8,0.81794159]
[1766338579738,7.21719182,2985.5,2984.8,0.81794159]
[1766338580108,7.21719182,2985.5,2984.8,0.439]
[1766338580439,0.002,2985.5,2984.8,0.439]
[1766338587860,0.002,2985.5,2984.8,3.78927641]
[1766338589432,0.002,2985.6,2984.9,0.03350195]
[1766338590122,0.002,2985.6,2984.8,3.78927641]
[1766338590323,0.002,2985.6,2984.9,0.71396746]
[1766338591428,2.5463,2985.1,2984.4,0.001]
[1766338591629,4.60199182,2984.9,2984.4,0.001]
[1766338592325,4.60199182,2984.9,2984.8,0.001]
[1766338592526,4.60199182,2984.9,2984.4,0.001]
[1766338594159,7.95225283,2984.9,2984.4,0.001]
[1766338595261,10.60465283,2984.9,2984.4,0.001]
[1766338595583,5.30979182,2984.6,2984.0,0.001]
[1766338595774,7.25439182,2984.6,2984.0,0.001]
[1766338595976,4.60199182,2984.6,2984.0,0.001]
[1766338599630,10.60498782,2984.6,2984.0,0.001]
[1766338602357,6.002996,2984.6,2984.0,0.001]
[1766338605372,7.39879531,2984.6,2984.0,0.001]
[1766338605604,2.6524,2984.5,2984.0,0.001]
[1766338607578,6.00308272,2984.5,2984.0,0.001]
[1766338613282,6.00308272,2984.5,2983.6,0.001]
[1766338613283,4.60457546,2984.0,2983.6,0.001]
[1766338613455,0.46045755,2983.9,2983.6,0.001]
[1766338613784,7.25697546,2984.0,2983.6,0.001]
[1766338615386,2.6524,2984.0,2983.6,0.001]
[1766338616061,6.00363375,2984.0,2983.6,0.001]
[1766338617461,2.6524,2984.1,2983.6,0.001]
[1766338617804,3.35100484,2984.2,2983.6,0.001]
[1766338617805,0.7078,2984.2,2983.6,0.001]
[1766338618108,5.29551703,2984.3,2983.6,0.001]
[1766338618288,6.23091571,2984.3,2983.6,0.001]
[1766338619293,6.23091571,2984.3,2983.4,0.601]
[1766338621277,5.29551703,2984.3,2983.4,0.601]
[1766338621591,6.00331703,2984.3,2983.4,0.601]
[1766338626805,0.002,2984.5,2983.5,0.0167639]
[1766338627009,0.002,2984.5,2983.7,0.0167639]
[1766338627303,0.002,2984.5,2983.8,0.439]
[1766338634510,0.002,2984.5,2983.8,0.44]
[1766338641432,2.6628,2984.4,2983.8,0.44]
[1766338642532,4.28740164,2984.4,2983.8,0.44]
[1766338642746,15.59520636,2984.4,2983.4,0.601]
[1766338643029,0.7621,2983.9,2983.4,0.601]
[1766338643228,0.7621,2983.7,2983.4,0.601]
[1766338643433,2.6628,2983.7,2983.4,0.601]
[1766338644939,0.439,2984.1,2983.4,0.601]
[1766338645143,2.6628,2983.8,2983.4,0.601]
[1766338645673,0.60140382,2983.8,2983.4,0.601]
[1766338645821,2.6628,2983.7,2983.4,0.601]
[1766338650338,0.60140382,2983.8,2983.4,0.601]
[1766338650633,6.01412422,2983.9,2983.4,0.601]
[1766338652639,6.01412422,2983.9,2983.4,0.001]
[1766338652937,6.70241286,2984.0,2983.4,0.001]
[1766338653638,2.669,2983.9,2983.4,0.001]
[1766338653939,0.93714129,2983.8,2983.4,0.001]
[1766338659867,2.669,2983.9,2983.4,0.001]
[1766338660956,2.8972,2984.3,2983.4,0.001]
[1766338661130,2.206,2984.3,2983.4,0.001]
[1766338661331,2.4582,2984.2,2983.4,0.44]
[1766338661664,0.6912,2984.1,2983.4,0.44]
[1766338663863,0.6932,2984.1,2983.4,0.44]
[1766338664231,2.4602,2984.1,2983.4,0.44]
[1766338664559,0.002,2984.5,2983.4,4.17129068]
[1766338664865,5.80873901,2984.6,2983.4,7.52317108]
[1766338664866,2.28527777,2984.6,2983.4,7.52317108]
[1766338665167,2.28527777,2984.6,2983.5,0.0167639]
[1766338666236,0.002,2984.9,2983.6,6.70331142]
[1766338666438,0.002,2984.9,2983.9,0.0167639]
[1766338666639,0.002,2984.9,2984.0,0.90129501]
[1766338667155,0.002,2984.9,2984.1,0.0167639]
[1766338668139,0.002,2985.3,2984.3,0.0167639]
[1766338668340,0.002,2985.9,2984.6,0.1046]
[1766338668574,1e-08,2986.1,2984.8,0.1046]
[1766338668879,0.56551024,2986.5,2985.1,0.1046]
[1766338669048,0.56551024,2986.5,2985.3,0.1062]
[1766338669249,0.56551024,2986.5,2985.5,0.1062]
[1766338670349,0.56551024,2986.5,2985.6,6.698821]
[1766338670547,0.6912,2986.3,2985.7,0.7776821]
[1766338670748,2.4582,2986.3,2985.7,0.7776821]
[1766338671073,2.4582,2986.3,2985.7,0.1078]
[1766338672880,2.4582,2986.3,2985.8,3.34918614]
[1766338673243,2.4582,2986.3,2985.8,3.46178614]
[1766338674498,3.02471024,2986.5,2985.8,3.46178614]
[1766338674983,0.002,2986.7,2985.8,10.48655842]
[1766338675152,0.002,2986.7,2986.0,0.1156]
[1766338675776,0.002,2986.7,2986.1,3.34884967]
[1766338675984,0.002,2986.7,2986.2,0.1156]
[1766338676373,2.4582,2987.0,2986.2,0.5546]
[1766338676678,1.039,2987.3,2986.3,0.1171]
[1766338676978,0.6912,2987.1,2986.3,0.1171]
[1766338677178,2.63122,2987.1,2986.3,0.1171]
[1766338677752,2.63122,2987.1,2986.4,3.46711326]
[1766338678064,2.4582,2987.0,2986.4,3.46711326]
[1766338678954,2.4582,2987.0,2986.4,6.81562652]
[1766338679353,0.6912,2987.0,2986.5,0.1215]
[1766338679763,0.954322,2987.0,2986.5,0.1215]
[1766338680161,0.17302,2987.1,2986.3,6.69725076]
[1766338680360,1.039,2987.3,2986.7,0.1229]
[1766338680566,0.6,2987.3,2986.7,0.1229]
[1766338680782,0.96733695,2988.2,2987.2,0.5121]
[1766338680984,3.34582833,2988.8,2986.5,0.0167639]
[1766338680985,5.03571261,2988.4,2987.5,2.4067]
[1766338681184,0.50357126,2988.3,2987.5,1.8933]
[1766338681383,0.50357126,2988.3,2987.3,0.9514]
[1766338681384,0.50557126,2988.3,2987.3,2.8447]
[1766338682194,0.50557126,2988.3,2987.5,6.69456066]
[1766338682372,1.0065658,2988.9,2987.6,4.59671261]
[1766338682579,1.4455658,2988.9,2987.7,0.438]
[1766338682793,1.4455658,2988.9,2988.0,2.4113]
[1766338682794,2.4582,2988.7,2988.0,2.4113]
[1766338682998,2.4582,2988.7,2988.1,1.8969]
[1766338683302,0.44,2988.9,2987.7,0.438]
[1766338683602,2.4582,2988.5,2987.8,0.438]
[1766338683903,0.24582,2988.4,2987.9,2.4138]
[1766338684100,2.4582,2988.6,2987.9,2.4138]
[1766338684301,1.767,2988.5,2987.8,1.8969]
[1766338684519,2.4582,2988.4,2987.9,0.438]
[1766338686627,2.3082,2988.4,2987.9,0.438]
[1766338686983,2.3082,2988.4,2987.9,3.78481175]
[1766338687292,0.001,2988.9,2988.1,0.7495]
[1766338687492,0.001,2988.9,2988.4,1.9732]
[1766338689286,7.60545064,2989.4,2988.5,0.7495]
[1766338689488,0.6971,2988.8,2988.2,0.438]
[1766338689686,3.10367506,2988.8,2988.2,3.78446987]
[1766338689912,3.10367506,2988.8,2988.3,3.34637299]
[1766338690220,3.10367506,2988.8,2988.3,5.31957299]
[1766338690387,2.5748,2988.8,2988.3,5.31957299]
[1766338690897,0.6971,2988.8,2988.3,6.06907299]
[1766338692611,2.5748,2989.0,2988.3,6.06907299]
[1766338692916,0.25748,2988.9,2988.3,6.06907299]
[1766338693824,2.83228,2988.9,2988.3,6.06907299]
[1766338694686,0.25748,2988.9,2988.3,6.69275722]
[1766338694889,3.0138,2989.3,2988.5,0.7495]
[1766338695090,0.439,2989.3,2988.5,0.7495]
[1766338695411,2.5748,2989.1,2988.5,0.7495]
[1766338696018,0.002,2988.8,2988.5,0.7495]
[1766338696330,0.002,2988.8,2988.5,4.09563265]
[1766338696730,0.002,2988.8,2988.4,0.438]
[1766338696906,0.25768,2988.7,2988.4,0.438]
[1766338697227,0.25543382,2988.7,2988.4,0.438]
[1766338698307,0.25543382,2988.7,2988.3,2.7227]
[1766338698617,0.25543382,2988.7,2988.3,6.50706326]
[1766338699220,0.25543382,2988.7,2988.3,6.50704327]
[1766338700630,0.25543382,2988.7,2988.3,3.1607]
[1766338700810,0.002,2988.8,2988.3,6.5070233]
[1766338701016,0.439,2989.3,2988.3,12.3730605]
[1766338701315,0.439,2989.3,2988.6,1.9732]
[1766338701609,2.5768,2989.5,2988.9,2.7227]
[1766338702011,0.002,2989.5,2988.4,1.00511435]
[1766338702211,0.002,2989.5,2988.2,3.34641727]
[1766338702212,6.46935064,2988.9,2988.2,3.34641727]
[1766338702427,6.46935064,2988.9,2988.2,5.75761727]
[1766338702428,2.5748,2988.8,2988.2,5.75761727]
[1766338702836,2.5748,2988.8,2988.2,2.4112]
[1766338703035,2.5748,2988.6,2988.0,5.75784821]
[1766338703204,2.5748,2988.6,2988.1,3.34656046]
[1766338704514,2.5748,2988.6,2988.1,6.06926046]
[1766338708035,2.016,2989.6,2988.5,0.7495]
[1766338708213,0.439,2989.4,2988.7,2.7227]
[1766338709112,5.03065064,2989.4,2988.7,2.7227]
[1766338710108,2.5748,2989.3,2988.7,2.7227]
[1766338711021,0.002,2988.8,2988.7,2.7227]
[1766338712234,5.03065064,2989.4,2988.7,3.34591449]
[1766338712235,0.439,2989.4,2988.7,3.34591449]
[1766338712749,0.439,2989.4,2988.8,1.9487]
[1766338712919,0.439,2989.4,2988.9,2.6578]
[1766338713330,3.0502,2989.4,2988.7,6.00371449]
[1766338713537,3.81478506,2989.4,2988.7,6.00371449]
[1766338714327,3.04638506,2989.4,2988.7,6.00371449]
[1766338714626,0.7684,2989.3,2988.7,6.00371449]
[1766338715547,1.20358506,2989.4,2988.5,3.34614295]
[1766338715744,1.20358506,2989.4,2988.7,0.7019]
[1766338715921,3.87378506,2989.4,2988.8,1.9517]
[1766338716121,3.87378506,2989.4,2988.8,2.6536]
[1766338717648,3.1092,2989.4,2988.8,2.6536]
[1766338718851,0.002,2989.3,2988.8,2.6536]
[1766338722141,0.002,2989.3,2988.7,3.34589663]
[1766338722645,0.002,2989.3,2988.8,2.6536]
[1766338723458,0.002,2989.3,2988.9,1.9517]
[1766338723754,0.439,2989.4,2988.9,3.34568437]
[1766338723948,0.439,2989.4,2989.0,2.6536]
[1766338724155,0.002,2989.5,2989.2,1.9517]
[1766338724327,2.33745329,2989.9,2989.3,2.6536]
[1766338724520,3.07475329,2989.9,2989.3,2.6536]
[1766338728766,3.07475329,2989.9,2988.9,8.37318411]
[1766338728767,0.439,2989.9,2988.9,0.438]
[1766338729070,0.439,2989.9,2988.3,3.34734818]
[1766338729071,7.25967575,2989.1,2988.4,0.7019]
[1766338729270,2.6702,2988.8,2988.3,0.001]
[1766338730064,1.9329,2988.8,2988.3,0.001]
[1766338730259,0.7373,2988.7,2988.3,0.001]
[1766338730728,1.9329,2988.8,2988.3,0.001]
[1766338731143,1.9329,2989.1,2988.3,0.001]
[1766338731340,2.6702,2989.1,2988.5,1.9517]
[1766338731593,2.6702,2989.1,2988.5,2.6536]
[1766338731741,0.7373,2989.0,2988.5,2.6536]
[1766338731943,0.7373,2988.9,2988.3,1.9527]
[1766338732194,0.7373,2988.9,2988.3,2.6546]
[1766338732779,2.6702,2988.9,2988.3,2.6546]
[1766338733685,2.6702,2988.9,2988.3,6.00092474]
[1766338734068,0.7373,2988.9,2988.4,2.6536]
[1766338735086,0.7373,2989.2,2988.6,1.9517]
[1766338735389,2.3719,2989.3,2988.6,1.9517]
[1766338735390,0.439,2989.3,2988.6,2.6536]
[1766338735744,0.439,2989.3,2988.5,3.78407819]
[1766338735952,0.439,2989.3,2988.7,2.6536]
[1766338736188,0.439,2989.3,2988.6,3.34604369]
[1766338736189,0.7373,2989.6,2989.0,1.9517]
[1766338736393,2.3719,2989.8,2989.1,1.9517]
[1766338736590,3.1092,2989.8,2989.2,1.9517]
[1766338736891,1.9329,2989.7,2988.9,2.6536]
[1766338737080,2.6702,2989.5,2989.0,0.438]
[1766338737769,2.6702,2989.5,2989.0,2.3897]
[1766338738294,2.6722,2989.5,2989.0,2.3897]
[1766338739095,0.002,2989.5,2989.0,2.3897]
[1766338739293,0.002,2989.5,2989.0,3.0916]
[1766338739470,0.002,2989.5,2989.0,3.00780861]
[1766338740784,0.002,2989.5,2989.0,0.35420861]
[1766338740785,2.6722,2989.5,2989.0,0.35420861]
[1766338741212,2.6722,2989.5,2989.0,2.30590861]
[1766338741410,2.6722,2989.5,2989.0,3.00780861]
[1766338742101,0.002,2989.5,2989.0,0.35420861]
[1766338742406,0.002,2989.9,2989.1,1.9517]
[1766338742701,0.002,2989.9,2989.4,2.6536]
[1766338745490,0.693,2989.9,2989.4,2.6536]
[1766338748707,0.002,2989.9,2989.4,2.6536]
[1766338749105,0.002,2989.9,2989.4,3.34513952]
[1766338749310,0.002,2989.9,2989.6,0.6886]
[1766338749511,0.002,2989.9,2989.6,2.5403]
[1766338752309,0.002,2989.9,2989.7,0.6886]
[1766338752486,0.002,2989.9,2989.7,2.5403]